bitfinex/quotes_SOLUSD_20211001
["timestamp","ask_amount","ask_price","bid_price","bid_amount"]
[1633051658888,25.02579858,141.83,141.76,2.96]
[1633051664896,27.98579858,141.83,141.74,13.11929184]
[1633051665097,42.90979858,141.83,141.72,2.96]
[1633051665293,20.57101994,141.82,141.72,2.96]
[1633051665894,26.63390746,141.8,141.72,2.96]
[1633051667515,470.93219018,141.77,141.72,2.96]
[1633051667698,26.54008031,141.76,141.72,2.96]
[1633051668295,26.54008031,141.76,141.7,2.96]
[1633051668495,26.54008031,141.76,141.68,13.11654901]
[1633051668695,26.54008031,141.76,141.67,2.96]
[1633051668898,75.6483,141.75,141.65,2.96]
[1633051672701,2.96,141.74,141.65,2.96]
[1633051673098,22.54664125,141.73,141.65,2.96]
[1633051676403,22.54664125,141.73,141.65,8.59542961]
[1633051677205,22.54664125,141.73,141.65,21.70628134]
[1633051678205,22.54664125,141.73,141.65,16.07085173]
[1633051678405,2.96,141.76,141.65,16.07085173]
[1633051678605,2.96,141.76,141.65,21.70628134]
[1633051679004,2.96,141.76,141.65,16.07085173]
[1633051679406,27.8716007,141.75,141.65,16.07085173]
[1633051679627,27.8716007,141.75,141.65,21.70628134]
[1633051681429,470.93219018,141.77,141.65,21.70628134]
[1633051681630,470.93219018,141.77,141.65,42.83128134]
[1633051681832,470.93219018,141.77,141.66,13.10995355]
[1633051682031,470.93219018,141.77,141.67,2.96]
[1633051682231,470.93219018,141.77,141.67,8.59542961]
[1633051682432,27.20689681,141.78,141.67,2.96]
[1633051682631,27.20689681,141.78,141.69,12.74112769]
[1633051682831,27.20689681,141.78,141.7,2.96]
[1633051683034,27.20689681,141.78,141.7,27.90388761]
[1633051683233,2.96,141.83,141.7,27.90388761]
[1633051683934,2.96,141.83,141.71,6.1130114]
[1633051684134,22.68677464,141.82,141.72,2.96]
[1633051684837,75.0417,141.85,141.72,2.96]
[1633051685034,2.96,141.84,141.73,6.11255091]
[1633051685236,2.96,141.84,141.74,2.96]
[1633051685834,23.66879571,141.83,141.74,2.96]
[1633051686836,23.66879571,141.83,141.74,25.21571994]
[1633051687736,23.66879571,141.83,141.74,2.96]
[1633051688736,492.04987208,141.83,141.75,28.9027317]
[1633051691543,392.55086242,141.83,141.82,2.58416843]
[1633051691741,392.55086242,141.83,141.82,5.54416843]
[1633051691941,74.61168,141.92,141.82,11.17959804]
[1633051692141,74.61168,141.92,141.82,2.96]
[1633051692344,0.02088,141.92,141.82,27.76642377]
[1633051692541,27.24073582,141.95,141.83,18.82517589]
[1633051692741,27.24073582,141.95,141.84,2.96]
[1633051692942,27.24073582,141.95,141.84,22.25674158]
[1633051693143,27.24073582,141.95,141.84,27.89217119]
[1633051693346,2.96,141.99,141.85,5.63542961]
[1633051693547,2.96,141.99,141.86,2.96]
[1633051693943,2.96,141.99,141.87,5.63542961]
[1633051694144,2.96,141.99,141.88,2.96]
[1633051694344,31.03985102,141.99,141.88,26.375]
[1633051698549,395.20533844,141.99,141.88,26.375]
[1633051698749,395.20533844,141.99,141.88,2.96]
[1633051699151,395.20533844,141.99,141.88,24.70542961]
[1633051699348,31.03985102,141.99,141.88,24.70542961]
[1633051700147,2.96,141.99,141.88,98.79542961]
[1633051700350,2.96,141.99,141.88,130.22890971]
[1633051701348,2.96,141.99,141.88,124.5934801]
[1633051701549,2.96,141.99,141.88,77.05]
[1633051702950,2.96,141.99,141.88,82.68542961]
[1633051703356,2.96,141.99,141.88,77.05]
[1633051705558,2.96,141.99,141.88,82.68542961]
[1633051705955,2.96,141.99,141.88,77.05]
[1633051707356,2.96,141.99,141.88,82.70630961]
[1633051707955,2.96,141.99,141.88,84.72410253]
[1633051708157,2.96,141.99,141.88,84.70322253]
[1633051709558,2.96,141.99,141.89,2.01282979]
[1633051709760,2.96,141.99,141.9,4.96550442]
[1633051710159,2.96,141.99,141.9,10.60093403]
[1633051710768,2.96,141.99,141.9,2.96]
[1633051711364,2.96,141.99,141.9,4.96327682]
[1633051712763,2.96,141.99,141.91,1.99853174]
[1633051712964,2.96,141.99,141.92,2.96]
[1633051714564,2.96,141.99,141.92,4.96513938]
[1633051714965,2.96,141.99,141.92,2.96]
[1633051716370,2.96,141.99,141.92,4.96621953]
[1633051716769,2.96,141.99,141.93,2.00197396]
[1633051716967,2.96,141.99,141.94,2.96]
[1633051719468,2.96,141.99,141.95,2.00758654]
[1633051719673,2.96,141.99,141.95,4.96758654]
[1633051720270,2.96,141.99,141.96,1.98741159]
[1633051721071,2.96,141.99,141.95,1.98879744]
[1633051721271,2.96,141.99,141.93,2.96]
[1633051721472,2.96,141.99,141.92,2.01020707]
[1633051721473,28.12716864,141.99,141.92,2.01020707]
[1633051721672,28.12716864,141.99,141.9,2.96]
[1633051721673,28.12716864,141.99,141.93,2.01896152]
[1633051722076,69.28537809,141.99,141.92,0.01956917]
[1633051722272,69.28537809,141.99,141.89,8.15723914]
[1633051722470,72.9647218,141.99,141.89,12.23428228]
[1633051722673,78.60015141,141.99,141.89,8.15723914]
[1633051722875,78.60015141,141.99,141.88,4.07713908]
[1633051723073,0.02088,141.98,141.88,4.07713908]
[1633051723274,2.96,141.97,141.88,4.07713908]
[1633051723473,27.44222594,141.96,141.87,8.15740046]
[1633051724272,105.26422594,141.96,141.87,8.15740046]
[1633051724473,105.26422594,141.96,141.86,2.96]
[1633051725273,9.3208955,141.94,141.86,2.96]
[1633051725474,29.99387907,141.93,141.86,2.96]
[1633051728983,29.99387907,141.93,141.82,4.07419515]
[1633051729175,2.96,141.92,141.81,15.19377498]
[1633051729376,2.96,141.92,141.81,2.96]
[1633051729575,18.08757176,141.91,141.81,2.96]
[1633051729778,24.08419594,141.9,141.81,2.96]
[1633051729976,76.576,141.89,141.79,2.96]
[1633051730376,27.04419594,141.9,141.79,2.96]
[1633051731178,43.566204,141.9,141.79,2.96]
[1633051731378,57.48984663,141.9,141.79,2.96]
[1633051733181,9.32501661,141.88,141.79,2.96]
[1633051733381,25.49072133,141.87,141.79,2.96]
[1633051734779,78.5201,141.86,141.79,2.96]
[1633051737783,34.81671703,141.87,141.79,2.96]
[1633051739782,113.34151703,141.87,141.79,2.96]
[1633051739983,34.81671703,141.87,141.79,2.96]
[1633051741587,25.49072133,141.87,141.79,2.96]
[1633051742989,34.87554105,141.92,141.79,2.96]
[1633051743189,31.91554105,141.92,141.79,8.59542961]
[1633051743995,53.87680065,141.92,141.79,8.59542961]
[1633051744784,53.87680065,141.92,141.8,8.15851035]
[1633051744986,53.87680065,141.92,141.81,2.96]
[1633051745389,53.87680065,141.92,141.81,8.59542961]
[1633051745587,21.9612596,141.92,141.81,8.59542961]
[1633051746787,21.9612596,141.92,141.81,2.96]
[1633051747388,21.9612596,141.92,141.82,8.15807356]
[1633051747588,21.9612596,141.92,141.83,2.96]
[1633051748388,9.58827825,141.95,141.83,2.96]
[1633051749387,28.12902678,141.94,141.83,2.96]
[1633051749588,28.12902678,141.94,141.84,8.15732808]
[1633051749792,28.12902678,141.94,141.85,2.96]
[1633051750988,28.12902678,141.94,141.86,8.15688075]
[1633051751189,28.12902678,141.94,141.87,2.96]
[1633051751592,60.04456783,141.94,141.87,2.96]
[1633051752393,78.6292,141.93,141.87,2.96]
[1633051753293,31.91554105,141.93,141.87,2.96]
[1633051754093,28.12902678,141.94,141.87,2.96]
[1633051762701,28.12902678,141.94,141.85,2.96]
[1633051763103,57.93045223,141.94,141.85,2.96]
[1633051763507,73.97056097,141.94,141.85,2.96]
[1633051764806,44.16913552,141.94,141.85,2.96]
[1633051765204,56.38913552,141.94,141.85,2.96]
[1633051765606,72.74456513,141.94,141.85,2.96]
[1633051766008,9.32221015,141.92,141.83,2.96]
[1633051766206,29.0795762,141.91,141.83,2.96]
[1633051769409,29.0795762,141.91,141.84,8.15882238]
[1633051769608,29.0795762,141.91,141.85,2.96]
[1633051774514,9.32221015,141.92,141.85,2.96]
[1633051774914,9.32221015,141.92,141.86,8.15765037]
[1633051775115,9.32221015,141.92,141.87,2.96]
[1633051775314,76.4805,141.95,141.87,2.96]
[1633051775514,26.18663724,141.94,141.87,24.999]
[1633051776118,446.81911615,141.96,141.87,24.999]
[1633051776518,446.81911615,141.96,141.88,12.13658578]
[1633051776716,437.23129363,141.96,141.89,2.96]
[1633051778721,25.39931189,141.97,141.89,2.96]
[1633051779519,25.39931189,141.97,141.89,25.65]
[1633051781520,25.39931189,141.97,141.89,2.96]
[1633051782723,31.0347415,141.97,141.87,2.96]
[1633051785528,25.39931189,141.97,141.87,2.96]
[1633051785728,25.39931189,141.97,141.88,8.15582446]
[1633051785928,25.39931189,141.97,141.89,2.96]
[1633051796860,31.0347415,141.97,141.89,2.96]
[1633051797662,43.2547415,141.97,141.89,2.96]
[1633051797861,53.9747415,141.97,141.89,2.96]
[1633051800067,31.0347415,141.97,141.89,2.96]
[1633051800667,53.9747415,141.97,141.89,2.96]
[1633051800866,31.0347415,141.97,141.89,2.96]
[1633051801269,9.31991745,141.96,141.89,2.96]
[1633051801667,21.75201228,141.94,141.89,2.96]
[1633051802868,21.75201228,141.94,141.87,2.96]
[1633051804468,21.75201228,141.94,141.88,8.15740362]
[1633051804669,21.75201228,141.94,141.87,2.96]
[1633051804871,21.75201228,141.94,141.88,8.15744247]
[1633051806072,21.75201228,141.94,141.87,2.96]
[1633051806873,21.75201228,141.94,141.88,8.15717596]
[1633051810474,21.75201228,141.94,141.89,2.96]
[1633051811477,5.63542961,141.95,141.9,8.15651701]
[1633051811879,9.31991745,141.96,141.9,8.15651701]
[1633051812477,21.33677165,141.95,141.9,8.15651701]
[1633051817487,21.33677165,141.95,141.9,43.8859039]
[1633051817686,21.33677165,141.95,141.9,35.72938689]
[1633051818685,28.85203107,141.95,141.9,35.72938689]
[1633051819287,29.25262111,141.95,141.9,35.72938689]
[1633051823388,24.68780476,141.92,141.9,35.72938689]
[1633051834202,24.68780476,141.92,141.86,7.03788681]
[1633051834400,30.32323437,141.92,141.87,8.15856711]
[1633051835103,30.32323437,141.92,141.86,4.07788681]
[1633051835705,30.32323437,141.92,141.85,12.23681197]
[1633051835906,24.68780476,141.92,141.86,4.07752248]
[1633051836503,32.59535679,141.92,141.86,4.07752248]
[1633051836708,32.59535679,141.92,141.85,12.23679648]
[1633051836909,29.02858684,141.91,141.84,4.07831308]
[1633051837106,31.98858684,141.91,141.83,12.23828454]
[1633051837305,30.20003707,141.89,141.83,4.07850067]
[1633051837703,35.83546668,141.89,141.82,4.07805053]
[1633051837906,64.87488686,141.89,141.82,4.07805053]
[1633051838912,64.87488686,141.89,141.81,12.23850745]
[1633051839710,64.87488686,141.89,141.81,8.16052369]
[1633051839908,364.57292836,141.85,141.81,8.16052369]
[1633051840109,21.41228016,141.84,141.81,8.16052369]
[1633051840308,364.57292836,141.85,141.81,8.16052369]
[1633051840508,364.57292836,141.85,141.82,4.07692616]
[1633051840708,364.57292836,141.85,141.81,12.23754754]
[1633051841311,386.15114278,141.85,141.81,12.23754754]
[1633051841911,386.15114278,141.85,141.81,8.16052369]
[1633051842310,386.15114278,141.85,141.83,2.03860714]
[1633051842509,386.15114278,141.85,141.81,8.16052369]
[1633051842510,386.15114278,141.85,141.84,2.03852865]
[1633051842716,386.15114278,141.85,141.83,2.038486]
[1633051845110,386.15114278,141.85,141.82,2.03850434]
[1633051845510,386.15114278,141.85,141.77,6.11521563]
[1633051845511,408.51657239,141.85,141.77,6.11521563]
[1633051845714,408.51657239,141.85,141.77,8.16255617]
[1633051845715,413.84286654,141.85,141.77,8.16255617]
[1633051845910,408.20743693,141.85,141.77,8.16255617]
[1633051846311,439.81728165,141.85,141.77,8.16255617]
[1633051846510,434.18185204,141.85,141.77,8.16255617]
[1633051846712,8.16255617,141.77,141.74,2.96]
[1633051846911,8.16255617,141.77,141.75,8.16391964]
[1633051847112,36.27969485,141.77,141.73,8.16410216]
[1633051847915,36.27969485,141.77,141.72,2.96]
[1633051848312,36.27969485,141.77,141.73,8.16460086]
[1633051848712,36.27969485,141.77,141.72,2.96]
[1633051852215,414.05790435,141.76,141.72,2.96]
[1633051852415,414.05790435,141.76,141.7,2.96]
[1633051854614,414.05790435,141.76,141.71,8.16437238]
[1633051855015,414.05790435,141.76,141.7,2.96]
[1633051855216,414.05790435,141.76,141.71,8.16429881]
[1633051856416,414.05790435,141.76,141.7,2.96]
[1633051858318,416.73061681,141.76,141.68,2.96]
[1633051858918,438.40615516,141.76,141.68,2.96]
[1633051859319,432.77072555,141.76,141.68,2.96]
[1633051859522,458.73243801,141.76,141.66,2.96]
[1633051859720,26.33036964,141.74,141.66,2.96]
[1633051860523,41.04595896,141.74,141.66,2.96]
[1633051860922,44.00595896,141.74,141.63,2.96]
[1633051861124,44.00595896,141.74,141.64,8.16765591]
[1633051861324,75.30666822,141.74,141.64,8.16765591]
[1633051861522,75.30666822,141.74,141.58,8.16255617]
[1633051861727,22.91523647,141.73,141.57,2.96]
[1633051861926,22.91523647,141.73,141.54,2.96]
[1633051861927,12.31667472,141.72,141.54,2.96]
[1633051862126,0.0212976,141.71,141.54,2.96]
[1633051862324,0.0212976,141.69,141.54,2.96]
[1633051862524,2.96,141.68,141.54,2.96]
[1633051862923,18.49137847,141.66,141.55,24.96105536]
[1633051863123,18.49137847,141.66,141.56,2.96]
[1633051863926,464.77784402,141.66,141.56,2.96]
[1633051864127,74.5053,141.65,141.56,2.96]
[1633051864324,432.24935698,141.66,141.56,2.96]
[1633051864726,432.24935698,141.66,141.57,22.33591839]
[1633051864927,432.24935698,141.66,141.58,2.96]
[1633051865526,413.75797851,141.66,141.58,2.96]
[1633051866527,413.75797851,141.66,141.59,23.23827303]
[1633051866728,413.75797851,141.66,141.6,2.96]
[1633051868628,6.73876056,141.67,141.6,2.96]
[1633051869028,39.24017149,141.67,141.6,2.96]
[1633051869628,39.24017149,141.67,141.57,2.96]
[1633051872634,2.96,141.66,141.55,2.96]
[1633051872833,19.31542961,141.66,141.55,2.96]
[1633051873033,18.18140391,141.65,141.55,2.96]
[1633051873431,19.4331275,141.64,141.55,2.96]
[1633051873833,94.2075275,141.64,141.55,2.96]
[1633051874033,112.38893141,141.64,141.55,2.96]
[1633051874232,115.34893141,141.64,141.53,2.96]
[1633051874432,146.71497832,141.64,141.53,2.96]
[1633051874633,0.0212976,141.63,141.53,2.96]
[1633051875035,18.20270151,141.63,141.53,2.96]
[1633051875235,398.60850104,141.63,141.53,2.96]
[1633051876235,0.0212976,141.62,141.53,2.96]
[1633051877036,398.60850104,141.63,141.53,2.96]
[1633051877234,32.50141093,141.62,141.53,2.96]
[1633051877435,68.65011244,141.62,141.51,2.96]
[1633051877839,6.73876056,141.61,141.51,2.96]
[1633051878836,6.73876056,141.61,141.51,1.96]
[1633051887246,18.18140391,141.62,141.51,1.96]
[1633051887644,380.42709713,141.63,141.51,1.96]
[1633051888244,22.03232241,141.62,141.51,1.96]
[1633051888844,27.66775202,141.62,141.51,1.96]
[1633051889045,45.34915593,141.62,141.51,1.96]
[1633051889243,34.26070926,141.61,141.51,1.96]
[1633051889644,18.18140391,141.6,141.51,1.96]
[1633051889844,4.13956565,141.59,141.51,1.96]
[1633051891148,83.01836565,141.59,141.51,24.81576965]
[1633051891548,4.13956565,141.59,141.51,24.81576965]
[1633051891948,4.13956565,141.59,141.51,1.96]
[1633051892948,18.18140391,141.58,141.44,2.96]
[1633051893154,2.96,141.57,141.42,2.96]
[1633051893348,13.91358059,141.56,141.42,2.96]
[1633051893547,2.9812976,141.55,141.4,2.96]
[1633051893749,0.0212976,141.54,141.4,2.96]
[1633051893948,13.68,141.53,141.4,2.96]
[1633051894148,4.13956565,141.52,141.4,2.96]
[1633051894354,4.13956565,141.52,141.32,74.09]
[1633051894355,26.0,141.5,141.32,2.96]
[1633051894550,21.57188822,141.47,141.32,2.96]
[1633051894749,13.68,141.46,141.32,2.96]
[1633051894948,31.53542961,141.46,141.32,2.96]
[1633051895148,57.89052222,141.45,141.32,0.46]
[1633051895348,41.09684054,141.45,141.32,0.46]
[1633051895573,41.09684054,141.45,141.3,22.36502756]
[1633051895574,35.46141093,141.45,141.3,21.32502756]
[1633051895751,35.46141093,141.45,141.31,2.96]
[1633051895949,74.8722,141.46,141.31,2.98088]
[1633051896149,74.8722,141.46,141.31,32.98088]
[1633051896549,74.8722,141.46,141.31,38.61630961]
[1633051896750,74.8722,141.46,141.31,68.61630961]
[1633051896949,2.96,141.48,141.31,68.61630961]
[1633051897152,2.96,141.48,141.31,62.98088]
[1633051897356,35.46141093,141.48,141.31,2.98088]
[1633051897749,35.46141093,141.48,141.32,5.63542961]
[1633051897951,35.46141093,141.48,141.33,29.3010934]
[1633051899752,71.35929097,141.48,141.33,29.3010934]
[1633051899952,13.76087624,141.47,141.33,29.3010934]
[1633051900151,2.9812976,141.46,141.33,29.3010934]
[1633051900351,21.36667767,141.46,141.33,29.3010934]
[1633051900551,23.86835817,141.46,141.33,29.3010934]
[1633051900752,23.84706057,141.46,141.33,29.3010934]
[1633051901577,420.93171114,141.45,141.33,29.3010934]
[1633051903654,420.93171114,141.45,141.33,28.8010934]
[1633051906365,423.89171114,141.45,141.33,2.96]
[1633051906559,456.29846624,141.45,141.33,2.96]
[1633051907162,72.5929,141.44,141.33,2.96]
[1633051908462,420.93171114,141.45,141.33,2.96]
[1633051908863,77.5396,141.44,141.33,8.59542961]
[1633051909462,2.9812976,141.49,141.33,8.59542961]
[1633051910261,2.96,141.49,141.33,8.59542961]
[1633051911065,2.96,141.49,141.33,2.96]
[1633051911972,2.96,141.49,141.33,25.306]
[1633051912368,2.96,141.49,141.33,2.96]
[1633051912568,2.9812976,141.49,141.33,2.96]
[1633051914791,2.9812976,141.49,141.33,26.162]
[1633051914990,2.96,141.49,141.33,26.162]
[1633051915588,2.9812976,141.49,141.33,26.162]
[1633051917188,2.9812976,141.49,141.33,2.96]
[1633051920794,20.23329878,141.49,141.33,2.96]
[1633051920994,50.90672055,141.49,141.33,2.96]
[1633051921596,78.7224,141.48,141.33,8.59542961]
[1633051921795,78.7224,141.48,141.35,6.12919833]
[1633051921995,78.7224,141.48,141.37,27.0379132]
[1633051922196,78.7224,141.48,141.38,2.96]
[1633051922594,17.27329878,141.49,141.38,14.06019321]
[1633051922796,17.27329878,141.49,141.4,6.13104133]
[1633051922996,17.27329878,141.49,141.41,22.96698169]
[1633051923196,0.0212976,141.49,141.42,2.96]
[1633051923400,438.5869853,141.5,141.42,14.06495196]
[1633051923596,438.5869853,141.5,141.42,2.96]
[1633051923795,438.5869853,141.5,141.42,14.06448311]
[1633051923998,438.5869853,141.5,141.42,20.19500397]
[1633051925101,438.5869853,141.5,141.43,6.12907292]
[1633051925302,438.5869853,141.5,141.44,26.84579806]
[1633051926503,438.5869853,141.5,141.45,11.67159562]
[1633051926701,76.3955,141.58,141.46,2.96]
[1633051926900,76.3955,141.58,141.47,21.86598215]
[1633051927103,76.3955,141.58,141.48,2.96]
[1633051927302,76.3955,141.58,141.49,2.96]
[1633051928502,434.88846739,141.58,141.49,2.96]
[1633051928902,2.96,141.57,141.47,2.96]
[1633051929105,2.96,141.57,141.44,9.08706285]
[1633051929306,42.56291748,141.56,141.44,2.96]
[1633051929502,2.96,141.55,141.44,2.96]
[1633051929704,28.55987503,141.55,141.44,2.96]
[1633051929904,31.9196528,141.55,141.44,26.60237595]
[1633051930102,31.9196528,141.55,141.44,2.96]
[1633051930503,58.7364079,141.55,141.44,2.96]
[1633051931104,58.7364079,141.55,141.45,25.84202084]
[1633051931306,58.7364079,141.55,141.46,2.96]
[1633051932708,317.01397003,141.54,141.46,2.96]
[1633051933710,317.01397003,141.54,141.46,14.62695214]
[1633051934713,317.01397003,141.54,141.46,20.75172459]
[1633051935611,317.01397003,141.54,141.49,4.08291876]
[1633051935813,76.3955,141.58,141.5,2.96]
[1633051938614,357.68324032,141.54,141.5,2.96]
[1633051940216,357.68324032,141.54,141.46,7.04429137]
[1633051941016,74.9381,141.53,141.46,7.04429137]
[1633051941815,357.68324032,141.54,141.46,7.04429137]
[1633051942819,357.68324032,141.54,141.47,4.08437238]
[1633051943018,357.68324032,141.54,141.48,2.96]
[1633051943221,78.5843,141.59,141.48,2.96]
[1633051943622,0.0212976,141.58,141.48,2.96]
[1633051943818,2.96,141.57,141.46,7.04481062]
[1633051944020,2.9812976,141.57,141.46,2.96]
[1633051944221,2.9812976,141.57,141.46,7.045069]
[1633051944420,2.9812976,141.57,141.46,2.96]
[1633051945819,8.61672721,141.57,141.46,2.96]
[1633051946023,17.96200398,141.57,141.46,2.96]
[1633051946221,17.96200398,141.57,141.44,7.04630369]
[1633051946420,41.48398131,141.57,141.44,7.04630369]
[1633051946820,22.94,141.56,141.44,7.04630369]
[1633051947020,25.9,141.56,141.44,7.04630369]
[1633051947222,78.40511035,141.56,141.44,2.96]
[1633051949221,74.34607933,141.56,141.44,2.96]
[1633051949422,73.84607933,141.56,141.44,2.96]
[1633051949629,73.84607933,141.56,141.44,7.0473792]
[1633051951021,73.84607933,141.56,141.44,2.96]
[1633051951227,51.40607933,141.56,141.44,2.96]
[1633051951424,45.77064972,141.56,141.44,2.96]
[1633051951622,45.77064972,141.56,141.45,11.67586226]
[1633051951821,9.36657437,141.57,141.46,4.08684877]
[1633051952022,9.36657437,141.57,141.47,2.96]
[1633051952223,9.36657437,141.57,141.48,27.64475622]
[1633051952423,9.36657437,141.57,141.48,49.26575622]
[1633051952821,10.72,141.56,141.49,7.58824195]
[1633051953024,10.72,141.56,141.49,10.54824195]
[1633051953224,22.44,141.56,141.5,8.15948164]
[1633051953426,22.44,141.56,141.51,27.82082712]
[1633051953823,22.44,141.56,141.51,47.02882712]
[1633051954823,22.44,141.56,141.51,27.82082712]
[1633051955025,75.6243,141.59,141.49,7.04637482]
[1633051955223,75.6243,141.59,141.5,8.15951579]
[1633051955422,5.63542961,141.58,141.5,8.15951579]
[1633051955826,5.13542961,141.58,141.5,8.15951579]
[1633051956023,5.13542961,141.58,141.5,33.21002025]
[1633051956224,5.13542961,141.58,141.49,7.04637482]
[1633051956428,5.13542961,141.58,141.45,6.12967899]
[1633051956429,33.35074027,141.58,141.48,4.08671703]
[1633051956624,19.28867239,141.57,141.46,4.08719195]
[1633051956824,2.96,141.56,141.46,8.16085946]
[1633051957028,33.85074027,141.56,141.43,7.04819302]
[1633051957225,9.34792023,141.53,141.43,4.08819302]
[1633051957428,2.96,141.52,141.42,4.08854442]
[1633051957628,2.96,141.52,141.41,2.96]
[1633051957629,9.35056518,141.49,141.4,4.08903333]
[1633051957827,39.54813036,141.49,141.39,7.04847151]
[1633051958026,19.28867239,141.48,141.39,7.04847151]
[1633051958228,24.924102,141.48,141.39,7.04847151]
[1633051958427,5.63542961,141.47,141.39,2.96]
[1633051958827,8.59542961,141.47,141.38,4.08853054]
[1633051959027,8.59542961,141.47,141.36,7.04801906]
[1633051959227,5.63542961,141.46,141.36,7.04801906]
[1633051959427,23.48742961,141.46,141.37,4.08798049]
[1633051959627,9.35405061,141.44,141.34,7.04855611]
[1633051959828,18.7084244,141.44,141.34,2.96]
[1633051960032,5.63542961,141.43,141.34,2.96]
[1633051960229,24.41942961,141.43,141.34,2.96]
[1633051960428,18.7084244,141.44,141.34,2.96]
[1633051960630,18.7084244,141.44,141.34,7.04723423]
[1633051960830,24.34385401,141.44,141.34,2.96]
[1633051961028,2.96,141.43,141.33,4.0865113]
[1633051961229,2.96,141.43,141.32,7.04681356]
[1633051961430,5.65672721,141.42,141.32,7.04681356]
[1633051961628,0.0212976,141.41,141.32,4.08681356]
[1633051961829,8.61672721,141.41,141.31,32.42096917]
[1633051962030,8.61672721,141.41,141.31,28.33373685]
[1633051962031,5.63542961,141.4,141.31,28.33373685]
[1633051962231,5.63542961,141.4,141.3,7.0463063]
[1633051962430,2.96,141.41,141.3,7.0463063]
[1633051962836,2.96,141.41,141.3,2.96]
[1633051963031,2.96,141.41,141.3,7.0455354]
[1633051963430,2.96,141.41,141.31,27.63647325]
[1633051963631,13.68,141.41,141.31,31.72159696]
[1633051964431,10.72,141.41,141.31,31.72159696]
[1633051964630,2.96,141.43,141.32,2.96]
[1633051964832,296.42587539,141.4,141.32,7.04468878]
[1633051965033,296.42587539,141.4,141.32,2.96]
[1633051965631,296.42587539,141.4,141.35,2.04232538]
[1633051966432,296.42587539,141.4,141.34,33.43742757]
[1633051966833,296.42587539,141.4,141.34,5.00241119]
[1633051967736,296.42587539,141.4,141.35,2.04230895]
[1633051968332,296.42587539,141.4,141.34,29.38894757]
[1633051968732,296.42587539,141.4,141.34,5.00233431]
[1633051968933,296.42587539,141.4,141.34,2.96]
[1633051969134,296.42587539,141.4,141.34,5.00239715]
[1633051969735,296.42587539,141.4,141.35,2.04227042]
[1633051970136,296.42587539,141.4,141.34,5.00235519]
[1633051970741,296.42587539,141.4,141.31,5.0026304]
[1633051970936,5.63542961,141.39,141.31,5.0026304]
[1633051971337,296.42587539,141.4,141.31,5.0026304]
[1633051971937,72.3634,141.39,141.31,2.96]
[1633051972736,72.3634,141.39,141.31,5.00267398]
[1633051972937,72.3634,141.39,141.31,2.96]
[1633051974638,72.3634,141.39,141.32,25.02888484]
[1633051974839,3.5772655,141.4,141.32,25.02888484]
[1633051975042,9.35555209,141.42,141.33,2.96]
[1633051975240,10.72,141.43,141.33,2.96]
[1633051975437,10.72,141.43,141.33,5.00223168]
[1633051975641,10.72,141.43,141.33,2.96]
[1633051975840,5.63542961,141.42,141.33,2.96]
[1633051976238,22.44,141.43,141.33,2.96]
[1633051976440,11.72,141.43,141.33,2.96]
[1633051976640,17.35542961,141.43,141.33,2.96]
[1633051976839,5.63542961,141.43,141.33,2.96]
[1633051978441,2.96,141.42,141.33,2.96]
[1633051978841,5.63542961,141.41,141.33,2.96]
[1633051979040,14.99130477,141.41,141.33,2.96]
[1633051979239,9.35587516,141.41,141.33,2.96]
[1633051979442,9.35587516,141.41,141.33,28.86626162]
[1633051979845,9.35587516,141.41,141.33,30.90863752]
[1633051980046,9.35587516,141.41,141.34,2.04231376]
[1633051980242,2.96,141.43,141.34,2.04231376]
[1633051980844,2.96,141.43,141.33,25.90626162]
[1633051980845,2.96,141.43,141.36,23.77108553]
[1633051981047,2.96,141.43,141.36,23.27108553]
[1633051981244,9.35437381,141.44,141.36,23.27108553]
[1633051982244,2.96,141.45,141.36,48.98123161]
[1633051982444,349.50262006,141.46,141.37,2.04208595]
[1633051983043,349.50262006,141.46,141.38,2.04237201]
[1633051983244,349.50262006,141.46,141.39,29.40525359]